[Event "Early-Titled-Tuesday-Blitz-March-05-2024"]
[Site "Chess.com"]
[Date "2024.03.05"]
[Round "4"]
[White "GoltsevDmitry2000"]
[Black "iJueles"]
[Result "1-0"]
[WhiteElo "2708"]
[BlackElo "2477"]
[TimeControl "180+1"]
[EndTime "8:41:36 PST"]
[Termination "GoltsevDmitry2000 won by resignation"]

1. e4 {[%clk 0:02:43.2]} 1... c6 {[%clk 0:02:59.9]} 2. e5 {[%clk 0:02:43.3]}
2... d5 {[%clk 0:02:59.1]} 3. exd6 {[%clk 0:02:44.2]} 3... exd6 {[%clk
0:02:58.7]} 4. d4 {[%clk 0:02:45.1]} 4... d5 {[%clk 0:02:59.1]} 5. Nf3 {[%clk
0:02:45.4]} 5... Bg4 {[%clk 0:02:54.7]} 6. c4 {[%clk 0:02:45.4]} 6... Bxf3
{[%clk 0:02:53.1]} 7. Qxf3 {[%clk 0:02:45.2]} 7... Nf6 {[%clk 0:02:53.8]} 8. Nc3
{[%clk 0:02:44.7]} 8... Bb4 {[%clk 0:02:51.7]} 9. a3 {[%clk 0:02:41.1]} 9...
Bxc3+ {[%clk 0:02:51.2]} 10. bxc3 {[%clk 0:02:42]} 10... O-O {[%clk 0:02:48.8]}
11. Be2 {[%clk 0:02:41.8]} 11... dxc4 {[%clk 0:02:45.6]} 12. Bxc4 {[%clk
0:02:41.4]} 12... Re8+ {[%clk 0:02:43.3]} 13. Be3 {[%clk 0:02:40.5]} 13... Qa5
{[%clk 0:02:42.5]} 14. Rc1 {[%clk 0:02:38]} 14... Qxa3 {[%clk 0:02:39.9]} 15.
O-O {[%clk 0:02:37.3]} 15... Nbd7 {[%clk 0:02:40]} 16. Bg5 {[%clk 0:02:32]}
16... h6 {[%clk 0:02:38.8]} 17. Bh4 {[%clk 0:02:27.2]} 17... a5 {[%clk
0:02:14.6]} 18. Qf5 {[%clk 0:02:25.8]} 18... Qe7 {[%clk 0:02:01.3]} 19. h3
{[%clk 0:02:24.5]} 19... Qe4 {[%clk 0:01:59.5]} 20. Qxe4 {[%clk 0:02:16.7]}
20... Rxe4 {[%clk 0:01:57.3]} 21. Bg3 {[%clk 0:02:16.7]} 21... b5 {[%clk
0:01:54.8]} 22. Bd3 {[%clk 0:02:16.8]} 22... Ree8 {[%clk 0:01:55.4]} 23. Bd6
{[%clk 0:02:14.2]} 23... Ne4 {[%clk 0:01:49.8]} 24. Ba3 {[%clk 0:02:04.1]} 24...
Nb6 {[%clk 0:01:49.2]} 25. Rfd1 {[%clk 0:01:59.4]} 25... Rad8 {[%clk 0:01:29.2]}
26. f3 {[%clk 0:01:51.9]} 26... Nd6 {[%clk 0:01:29.3]} 27. Bc5 {[%clk
0:01:49.7]} 27... Ndc4 {[%clk 0:01:27]} 28. Kf2 {[%clk 0:01:44.1]} 28... a4
{[%clk 0:01:26.2]} 29. Re1 {[%clk 0:01:42]} 29... f6 {[%clk 0:01:21.5]} 30. Bg6
{[%clk 0:01:37.3]} 30... Rxe1 {[%clk 0:01:20.9]} 31. Rxe1 {[%clk 0:01:38.2]}
31... Nd5 {[%clk 0:01:15.1]} 32. Be8 {[%clk 0:01:31.9]} 32... Nxc3 {[%clk
0:01:07.5]} 33. Bxc6 {[%clk 0:01:31.1]} 33... Nb2 {[%clk 0:00:54.8]} 34. Re7
{[%clk 0:01:25.9]} 34... Nd3+ {[%clk 0:00:50.9]} 35. Kg3 {[%clk 0:01:26.3]}
35... Nxc5 {[%clk 0:00:51.3]} 36. dxc5 {[%clk 0:01:27.2]} 36... a3 {[%clk
0:00:50.8]} 37. Ra7 {[%clk 0:01:20.5]} 37... a2 {[%clk 0:00:51.3]} 38. Bb7
{[%clk 0:01:15.8]} 38... b4 {[%clk 0:00:36]} 39. c6 {[%clk 0:01:12.8]} 39... b3
{[%clk 0:00:29.1]} 40. c7 {[%clk 0:01:12.8]} 40... Rf8 {[%clk 0:00:29.8]} 41.
c8=Q {[%clk 0:01:06.6]} 41... Rxc8 {[%clk 0:00:29.6]} 42. Bxc8 {[%clk
0:01:07.5]} 42... b2 {[%clk 0:00:28.7]} 43. Be6+ {[%clk 0:01:07.2]} 43... Kf8
{[%clk 0:00:25.1]} 44. Bxa2 {[%clk 0:01:08.1]} 44... Nxa2 {[%clk 0:00:24.6]} 45.
Rb7 {[%clk 0:01:08.5]} 45... Nc3 {[%clk 0:00:22.9]} 46. Rxb2 {[%clk 0:01:08.3]}
46... Nd5 {[%clk 0:00:23.8]} 47. Rd2 {[%clk 0:01:07.7]} 47... Ne7 {[%clk
0:00:24.1]} 48. Kf4 {[%clk 0:01:07.8]} 48... Kf7 {[%clk 0:00:24.4]} 49. g4
{[%clk 0:01:07.8]} 49... g5+ {[%clk 0:00:23.3]} 50. Ke4 {[%clk 0:01:07.8]} 50...
Ke6 {[%clk 0:00:23.1]} 51. Ra2 {[%clk 0:01:07.6]} 51... Ng6 {[%clk 0:00:22.1]}
52. Ra7 {[%clk 0:01:05.9]} 52... Nf4 {[%clk 0:00:20.6]} 53. h4 {[%clk
0:01:06.3]} 53... Ng2 {[%clk 0:00:17.2]} 54. h5 {[%clk 0:01:06.5]} 1-0

[Event "Early-Titled-Tuesday-Blitz-March-05-2024"]
[Site "Chess.com"]
[Date "2024.03.05"]
[Round "4"]
[White "TigrVShlyape"]
[Black "ReadySkate"]
[Result "1-0"]
[WhiteElo "2868"]
[BlackElo "2580"]
[TimeControl "180+1"]
[EndTime "8:41:38 PST"]
[Termination "TigrVShlyape won by resignation"]

1. d4 {[%clk 0:02:57.1]} 1... Nf6 {[%clk 0:02:59.3]} 2. Bf4 {[%clk 0:02:52.4]}
2... g6 {[%clk 0:02:59.5]} 3. c3 {[%clk 0:02:51.9]} 3... Bg7 {[%clk 0:03:00]} 4.
Nf3 {[%clk 0:02:51.1]} 4... O-O {[%clk 0:03:00.5]} 5. h3 {[%clk 0:02:49.8]} 5...
c5 {[%clk 0:03:01]} 6. e3 {[%clk 0:02:45.6]} 6... cxd4 {[%clk 0:03:01.1]} 7.
exd4 {[%clk 0:02:32.6]} 7... d6 {[%clk 0:03:00.3]} 8. Be2 {[%clk 0:02:25.6]}
8... Nc6 {[%clk 0:03:00.7]} 9. O-O {[%clk 0:02:25.3]} 9... Nd5 {[%clk
0:03:00.7]} 10. Bh2 {[%clk 0:02:24.8]} 10... e5 {[%clk 0:03:01.3]} 11. Na3
{[%clk 0:02:21.4]} 11... Nb6 {[%clk 0:02:56.1]} 12. dxe5 {[%clk 0:02:16.1]}
12... dxe5 {[%clk 0:02:57]} 13. Nc4 {[%clk 0:02:13]} 13... Nxc4 {[%clk
0:02:51.2]} 14. Bxc4 {[%clk 0:02:13.2]} 14... Qe7 {[%clk 0:02:48.7]} 15. Re1
{[%clk 0:02:12.3]} 15... Kh8 {[%clk 0:02:40]} 16. Qe2 {[%clk 0:02:05.2]} 16...
f6 {[%clk 0:02:38.5]} 17. Nd4 {[%clk 0:01:43.9]} 17... Bd7 {[%clk 0:02:35.5]}
18. Rad1 {[%clk 0:01:37.4]} 18... Rae8 {[%clk 0:02:30.7]} 19. Nxc6 {[%clk
0:01:35.7]} 19... Bxc6 {[%clk 0:02:31.6]} 20. Bb5 {[%clk 0:01:32.9]} 20... Qe6
{[%clk 0:02:27.7]} 21. Bxc6 {[%clk 0:01:30.6]} 21... Qxc6 {[%clk 0:02:28.5]} 22.
f3 {[%clk 0:01:15.9]} 22... a5 {[%clk 0:02:25.1]} 23. Bg3 {[%clk 0:01:14.7]}
23... a4 {[%clk 0:02:24.2]} 24. Bf2 {[%clk 0:01:11.1]} 24... Rd8 {[%clk
0:02:21]} 25. c4 {[%clk 0:01:09.9]} 25... Rfe8 {[%clk 0:02:06.3]} 26. b4 {[%clk
0:01:08.6]} 26... axb3 {[%clk 0:02:03.7]} 27. axb3 {[%clk 0:01:08.2]} 27... f5
{[%clk 0:02:01]} 28. Rxd8 {[%clk 0:01:05.4]} 28... Rxd8 {[%clk 0:02:01]} 29. Rd1
{[%clk 0:01:05.7]} 29... Rc8 {[%clk 0:02:01.5]} 30. Qd3 {[%clk 0:01:01.8]} 30...
e4 {[%clk 0:01:58.3]} 31. fxe4 {[%clk 0:01:01.3]} 31... fxe4 {[%clk 0:01:59.2]}
32. Qd5 {[%clk 0:00:59]} 32... Re8 {[%clk 0:01:48.8]} 33. Be3 {[%clk 0:00:55.4]}
33... Be5 {[%clk 0:01:42.4]} 34. b4 {[%clk 0:00:52.3]} 34... Qc8 {[%clk
0:01:32.8]} 35. c5 {[%clk 0:00:49.8]} 35... Bf6 {[%clk 0:01:29.5]} 36. b5 {[%clk
0:00:48]} 36... Rd8 {[%clk 0:01:28.9]} 37. Qb3 {[%clk 0:00:48]} 37... Re8 {[%clk
0:01:12.2]} 38. Qf7 {[%clk 0:00:44.9]} 38... Rf8 {[%clk 0:01:10.1]} 39. Qd7
{[%clk 0:00:43.5]} 39... Qa8 {[%clk 0:01:08.8]} 40. Qe6 {[%clk 0:00:41.3]} 40...
Qa4 {[%clk 0:01:06.9]} 41. Rf1 {[%clk 0:00:37.2]} 41... Qa3 {[%clk 0:00:59.6]}
42. Qxe4 {[%clk 0:00:35.9]} 42... Qb3 {[%clk 0:00:57.3]} 43. Rxf6 {[%clk
0:00:34.9]} 43... Rxf6 {[%clk 0:00:56.5]} 44. Bd4 {[%clk 0:00:35.2]} 44... Qd1+
{[%clk 0:00:40.5]} 45. Kh2 {[%clk 0:00:34.9]} 45... Qf1 {[%clk 0:00:40]} 46. Qe5
{[%clk 0:00:33.2]} 46... Kg7 {[%clk 0:00:39.9]} 47. c6 {[%clk 0:00:33.2]} 47...
bxc6 {[%clk 0:00:40.8]} 48. bxc6 {[%clk 0:00:33.1]} 48... Kf7 {[%clk 0:00:41.4]}
49. Qxf6+ {[%clk 0:00:32.9]} 49... Qxf6 {[%clk 0:00:41.8]} 50. Bxf6 {[%clk
0:00:33.3]} 1-0

[Event "Early-Titled-Tuesday-Blitz-March-05-2024"]
[Site "Chess.com"]
[Date "2024.03.05"]
[Round "4"]
[White "KhalilMousavi98"]
[Black "Indianlad"]
[Result "0-1"]
[WhiteElo "2816"]
[BlackElo "3020"]
[TimeControl "180+1"]
[EndTime "8:41:39 PST"]
[Termination "Indianlad won on time"]

1. e4 {[%clk 0:03:00.9]} 1... g6 {[%clk 0:02:55.8]} 2. d4 {[%clk 0:03:00]} 2...
Bg7 {[%clk 0:02:56.1]} 3. Nc3 {[%clk 0:02:50.1]} 3... a6 {[%clk 0:02:55.8]} 4.
f4 {[%clk 0:02:47.4]} 4... d5 {[%clk 0:02:54.1]} 5. e5 {[%clk 0:02:10.9]} 5...
Nh6 {[%clk 0:02:52.9]} 6. Bd3 {[%clk 0:02:08]} 6... f6 {[%clk 0:02:51.1]} 7. Nf3
{[%clk 0:02:06.4]} 7... Bg4 {[%clk 0:02:50.8]} 8. h3 {[%clk 0:02:02.6]} 8...
Bxf3 {[%clk 0:02:50.9]} 9. Qxf3 {[%clk 0:02:03.5]} 9... e6 {[%clk 0:02:51.1]}
10. Be3 {[%clk 0:01:54.6]} 10... O-O {[%clk 0:02:47.4]} 11. exf6 {[%clk
0:01:49.9]} 11... Qxf6 {[%clk 0:02:40.3]} 12. g4 {[%clk 0:01:29.3]} 12... Nf7
{[%clk 0:02:39.8]} 13. O-O-O {[%clk 0:01:26.5]} 13... c5 {[%clk 0:02:39.3]} 14.
dxc5 {[%clk 0:01:19.5]} 14... Nc6 {[%clk 0:02:39.5]} 15. h4 {[%clk 0:01:13.9]}
15... Nfe5 {[%clk 0:02:28.6]} 16. Qe2 {[%clk 0:01:09.5]} 16... Nxd3+ {[%clk
0:02:28.5]} 17. Rxd3 {[%clk 0:00:58.2]} 17... Qf7 {[%clk 0:02:17.1]} 18. Bd2
{[%clk 0:00:52.5]} 18... e5 {[%clk 0:01:33.4]} 19. f5 {[%clk 0:00:43.5]} 19...
e4 {[%clk 0:01:29.3]} 20. Rdh3 {[%clk 0:00:31.2]} 20... Nd4 {[%clk 0:01:28.7]}
21. Qd1 {[%clk 0:00:29.2]} 21... gxf5 {[%clk 0:01:28.8]} 22. gxf5 {[%clk
0:00:26.5]} 22... Nxf5 {[%clk 0:01:29.4]} 23. h5 {[%clk 0:00:24.8]} 23... Kh8
{[%clk 0:01:29.3]} 24. Kb1 {[%clk 0:00:21.8]} 24... Rae8 {[%clk 0:01:28.1]} 25.
h6 {[%clk 0:00:20.8]} 25... Be5 {[%clk 0:01:28.3]} 26. Ne2 {[%clk 0:00:17.6]}
26... d4 {[%clk 0:01:27.9]} 27. Rf1 {[%clk 0:00:13.4]} 27... Qe6 {[%clk
0:01:25.4]} 28. Nf4 {[%clk 0:00:11.5]} 28... Qc6 {[%clk 0:01:22]} 29. Qg4 {[%clk
0:00:09.3]} 29... d3 {[%clk 0:01:09.6]} 30. cxd3 {[%clk 0:00:08.1]} 30... Qb5
{[%clk 0:01:10.3]} 31. Bc1 {[%clk 0:00:07.3]} 31... e3 {[%clk 0:01:05.5]} 32.
Qe2 {[%clk 0:00:03]} 32... Qxc5 {[%clk 0:00:55]} 33. Ng2 {[%clk 0:00:02.8]}
33... Nd4 {[%clk 0:00:54.2]} 34. Rxf8+ {[%clk 0:00:02.6]} 34... Rxf8 {[%clk
0:00:54.5]} 35. Bxe3 {[%clk 0:00:01.5]} 35... Rf1+ {[%clk 0:00:45.3]} 0-1

[Event "Early-Titled-Tuesday-Blitz-March-05-2024"]
[Site "Chess.com"]
[Date "2024.03.05"]
[Round "4"]
[White "Practical-Play"]
[Black "EvgenyBurmakin"]
[Result "1-0"]
[WhiteElo "2523"]
[BlackElo "2346"]
[TimeControl "180+1"]
[EndTime "8:41:40 PST"]
[Termination "Practical-Play won on time"]

1. Nf3 {[%clk 0:02:54.4]} 1... Nf6 {[%clk 0:02:58.6]} 2. b3 {[%clk 0:02:50.8]}
2... d6 {[%clk 0:02:56.9]} 3. Bb2 {[%clk 0:02:51.7]} 3... e5 {[%clk 0:02:57.1]}
4. g3 {[%clk 0:02:42.9]} 4... Nc6 {[%clk 0:02:56.3]} 5. d3 {[%clk 0:02:42.1]}
5... Be7 {[%clk 0:02:53.9]} 6. Bg2 {[%clk 0:02:42.6]} 6... O-O {[%clk 0:02:54]}
7. O-O {[%clk 0:02:43.2]} 7... h6 {[%clk 0:02:53.8]} 8. h4 {[%clk 0:02:40.6]}
8... Bg4 {[%clk 0:02:52.7]} 9. Nh2 {[%clk 0:02:36.8]} 9... Be6 {[%clk
0:02:50.8]} 10. e4 {[%clk 0:02:33.4]} 10... Qd7 {[%clk 0:02:49.9]} 11. Nd2
{[%clk 0:02:30.4]} 11... Nh7 {[%clk 0:02:42.6]} 12. f4 {[%clk 0:02:19.2]} 12...
f5 {[%clk 0:02:34.9]} 13. Qe2 {[%clk 0:02:02.9]} 13... Rae8 {[%clk 0:02:15.7]}
14. exf5 {[%clk 0:01:57.3]} 14... Bxf5 {[%clk 0:02:12.5]} 15. g4 {[%clk
0:01:54.7]} 15... exf4 {[%clk 0:01:50.3]} 16. Bd5+ {[%clk 0:01:29.5]} 16... Kh8
{[%clk 0:01:44.3]} 17. Bxg7+ {[%clk 0:01:22.2]} 17... Kxg7 {[%clk 0:01:45.2]}
18. gxf5 {[%clk 0:01:22.6]} 18... Qxf5 {[%clk 0:01:26.9]} 19. Be4 {[%clk
0:01:13.7]} 19... Qh3 {[%clk 0:01:23]} 20. Kh1 {[%clk 0:00:57.1]} 20... Bxh4
{[%clk 0:01:19.4]} 21. Qh5 {[%clk 0:00:52.8]} 21... Rxe4 {[%clk 0:00:17.1]} 22.
Nxe4 {[%clk 0:00:46.7]} 22... Ne5 {[%clk 0:00:15.6]} 23. Rg1+ {[%clk 0:00:43.3]}
23... Ng5 {[%clk 0:00:15]} 24. Nxg5 {[%clk 0:00:40.5]} 24... hxg5 {[%clk
0:00:15.9]} 25. Rxg5+ {[%clk 0:00:40.6]} 25... Kf6 {[%clk 0:00:10.6]} 26. Qh6+
{[%clk 0:00:35]} 26... Ke7 {[%clk 0:00:08.6]} 27. Rg7+ {[%clk 0:00:28.5]} 27...
Nf7 {[%clk 0:00:07.6]} 28. Qxf4 {[%clk 0:00:20.8]} 28... Bf6 {[%clk 0:00:05.1]}
29. Re1+ {[%clk 0:00:20.4]} 29... Be5 {[%clk 0:00:02.3]} 30. d4 {[%clk 0:00:18]}
1-0

[Event "Early-Titled-Tuesday-Blitz-March-05-2024"]
[Site "Chess.com"]
[Date "2024.03.05"]
[Round "4"]
[White "Keeper0416"]
[Black "alexrustemov"]
[Result "0-1"]
[WhiteElo "2573"]
[BlackElo "2814"]
[TimeControl "180+1"]
[EndTime "8:41:44 PST"]
[Termination "alexrustemov won by resignation"]

1. e4 {[%clk 0:02:56]} 1... e6 {[%clk 0:03:00]} 2. d4 {[%clk 0:02:50.9]} 2... d5
{[%clk 0:03:00.2]} 3. Nd2 {[%clk 0:02:43.7]} 3... dxe4 {[%clk 0:03:00.5]} 4.
Nxe4 {[%clk 0:02:44.6]} 4... Bd7 {[%clk 0:03:00.8]} 5. Ng3 {[%clk 0:02:31.7]}
5... Bc6 {[%clk 0:03:00.7]} 6. Nf3 {[%clk 0:02:30.4]} 6... Nd7 {[%clk
0:02:59.7]} 7. Bd3 {[%clk 0:02:27.1]} 7... Ngf6 {[%clk 0:02:59.3]} 8. O-O {[%clk
0:02:25.1]} 8... Be7 {[%clk 0:02:59.7]} 9. c3 {[%clk 0:02:24.7]} 9... O-O {[%clk
0:02:59.3]} 10. Re1 {[%clk 0:02:24.6]} 10... b6 {[%clk 0:02:59]} 11. a4 {[%clk
0:02:20.8]} 11... Bb7 {[%clk 0:02:58.3]} 12. Qe2 {[%clk 0:02:19.1]} 12... c5
{[%clk 0:02:57.7]} 13. Ba6 {[%clk 0:02:13.8]} 13... Bxa6 {[%clk 0:02:26.9]} 14.
Qxa6 {[%clk 0:02:14.7]} 14... Qc8 {[%clk 0:02:27.1]} 15. Qxc8 {[%clk 0:02:06.6]}
15... Rfxc8 {[%clk 0:02:28]} 16. Be3 {[%clk 0:01:47.1]} 16... a6 {[%clk
0:02:25]} 17. Red1 {[%clk 0:01:41.2]} 17... Nd5 {[%clk 0:02:23.1]} 18. dxc5
{[%clk 0:01:10.2]} 18... Nxc5 {[%clk 0:02:18.6]} 19. Bxc5 {[%clk 0:01:07.8]}
19... Bxc5 {[%clk 0:02:17.4]} 20. Ne4 {[%clk 0:01:03.8]} 20... Be7 {[%clk
0:02:14.3]} 21. Nd4 {[%clk 0:00:55.7]} 21... Kf8 {[%clk 0:02:00.6]} 22. g3
{[%clk 0:00:54.9]} 22... Ke8 {[%clk 0:01:59.3]} 23. Kf1 {[%clk 0:00:51]} 23...
Rc7 {[%clk 0:01:58]} 24. Ke2 {[%clk 0:00:48.6]} 24... Rac8 {[%clk 0:01:57.1]}
25. Nf3 {[%clk 0:00:38.7]} 25... f6 {[%clk 0:01:55.7]} 26. h4 {[%clk 0:00:33.5]}
26... Kf7 {[%clk 0:01:53.9]} 27. Rd3 {[%clk 0:00:33.7]} 27... h5 {[%clk
0:01:46.5]} 28. Kf1 {[%clk 0:00:25.4]} 28... Rb7 {[%clk 0:01:36.7]} 29. Ned2
{[%clk 0:00:25.1]} 29... b5 {[%clk 0:01:33.3]} 30. axb5 {[%clk 0:00:19.9]} 30...
axb5 {[%clk 0:01:34.2]} 31. Ra6 {[%clk 0:00:10.3]} 31... Nb6 {[%clk 0:01:29.3]}
32. Nd4 {[%clk 0:00:08.8]} 32... Na4 {[%clk 0:01:22.1]} 33. Nxe6 {[%clk
0:00:02.9]} 33... Nxb2 {[%clk 0:01:19.2]} 34. Re3 {[%clk 0:00:02.5]} 34... Nd1
{[%clk 0:01:17.4]} 35. Rf3 {[%clk 0:00:02.5]} 35... Nxc3 {[%clk 0:01:15.4]} 36.
Ng5+ {[%clk 0:00:02.5]} 36... Kg6 {[%clk 0:01:13.9]} 37. Nge4 {[%clk 0:00:03.1]}
37... Nxe4 {[%clk 0:01:10.3]} 38. Nxe4 {[%clk 0:00:04]} 38... b4 {[%clk
0:01:08.3]} 39. Rb3 {[%clk 0:00:04.4]} 39... Rc2 {[%clk 0:01:03.9]} 40. Ra8
{[%clk 0:00:01.7]} 40... Rd7 {[%clk 0:01:02.7]} 41. Kg2 {[%clk 0:00:01.2]} 41...
Rd4 {[%clk 0:01:00.6]} 42. Kf3 {[%clk 0:00:01]} 42... Rcc4 {[%clk 0:00:52]} 43.
Ra6 {[%clk 0:00:01.6]} 0-1

[Event "Early-Titled-Tuesday-Blitz-March-05-2024"]
[Site "Chess.com"]
[Date "2024.03.05"]
[Round "4"]
[White "JaackCamel"]
[Black "Rawnsdale"]
[Result "1-0"]
[WhiteElo "2232"]
[BlackElo "2500"]
[TimeControl "180+1"]
[EndTime "8:41:44 PST"]
[Termination "JaackCamel won by resignation"]

1. d4 {[%clk 0:03:00.9]} 1... d5 {[%clk 0:02:58.7]} 2. c4 {[%clk 0:03:00.2]}
2... e6 {[%clk 0:02:58.7]} 3. Nc3 {[%clk 0:02:59.5]} 3... Be7 {[%clk 0:02:58]}
4. cxd5 {[%clk 0:02:56]} 4... exd5 {[%clk 0:02:58.9]} 5. Bf4 {[%clk 0:02:55.2]}
5... c6 {[%clk 0:02:59.1]} 6. e3 {[%clk 0:02:54.5]} 6... Bd6 {[%clk 0:02:59.5]}
7. Bxd6 {[%clk 0:02:53.4]} 7... Qxd6 {[%clk 0:03:00.4]} 8. Nf3 {[%clk
0:02:52.7]} 8... Ne7 {[%clk 0:03:00.7]} 9. Bd3 {[%clk 0:02:52.1]} 9... Bf5
{[%clk 0:03:00.5]} 10. Qc2 {[%clk 0:02:49.9]} 10... g6 {[%clk 0:02:42.2]} 11.
O-O {[%clk 0:02:46.6]} 11... O-O {[%clk 0:02:41]} 12. Ne5 {[%clk 0:02:45.3]}
12... Nd7 {[%clk 0:02:36.2]} 13. Nxd7 {[%clk 0:02:42.9]} 13... Qxd7 {[%clk
0:02:35.7]} 14. Ne2 {[%clk 0:02:42]} 14... Bxd3 {[%clk 0:02:30.1]} 15. Qxd3
{[%clk 0:02:41.7]} 15... Nf5 {[%clk 0:02:31]} 16. Nf4 {[%clk 0:02:39.5]} 16...
Rfe8 {[%clk 0:02:27.2]} 17. h3 {[%clk 0:02:39.3]} 17... Nd6 {[%clk 0:02:23]} 18.
Qb3 {[%clk 0:02:34.6]} 18... Nc4 {[%clk 0:02:18.9]} 19. Rfd1 {[%clk 0:02:30]}
19... a5 {[%clk 0:02:18.7]} 20. Nd3 {[%clk 0:02:25.8]} 20... b6 {[%clk
0:02:16.9]} 21. Rac1 {[%clk 0:02:15.8]} 21... a4 {[%clk 0:02:16.7]} 22. Qc3
{[%clk 0:02:03]} 22... Rac8 {[%clk 0:01:47.1]} 23. b3 {[%clk 0:01:54.7]} 23...
axb3 {[%clk 0:01:46.6]} 24. axb3 {[%clk 0:01:53.1]} 24... Na5 {[%clk 0:01:46.8]}
25. Qb4 {[%clk 0:01:49.5]} 25... Qa7 {[%clk 0:01:33.4]} 26. Ne5 {[%clk
0:01:45.5]} 26... f6 {[%clk 0:01:31.7]} 27. Ng4 {[%clk 0:01:41.6]} 27... Kg7
{[%clk 0:01:30.6]} 28. Qd6 {[%clk 0:01:39.3]} 28... Qf7 {[%clk 0:01:25.2]} 29.
Qf4 {[%clk 0:01:38.4]} 29... g5 {[%clk 0:01:21]} 30. Qd6 {[%clk 0:01:32.9]}
30... Re6 {[%clk 0:01:17.9]} 31. Qb4 {[%clk 0:01:28.8]} 31... h5 {[%clk
0:01:17.8]} 32. Nh2 {[%clk 0:01:16.8]} 32... Qa7 {[%clk 0:01:16.3]} 33. Ra1
{[%clk 0:01:14.7]} 33... Qc7 {[%clk 0:01:10.5]} 34. Nf3 {[%clk 0:01:12.1]} 34...
c5 {[%clk 0:00:55.8]} 35. dxc5 {[%clk 0:01:09.7]} 35... Qxc5 {[%clk 0:00:56.7]}
36. Qxc5 {[%clk 0:01:03]} 36... Rxc5 {[%clk 0:00:54.9]} 37. Nd4 {[%clk 0:01:03]}
37... Re8 {[%clk 0:00:52.9]} 38. b4 {[%clk 0:01:02.7]} 38... Rc3 {[%clk
0:00:28.9]} 39. bxa5 {[%clk 0:01:01.6]} 39... bxa5 {[%clk 0:00:29.8]} 40. Rxa5
{[%clk 0:00:59.6]} 40... g4 {[%clk 0:00:30.1]} 41. hxg4 {[%clk 0:00:55.8]} 41...
hxg4 {[%clk 0:00:31]} 42. Rxd5 {[%clk 0:00:53.1]} 42... Kg6 {[%clk 0:00:27.2]}
43. g3 {[%clk 0:00:50]} 43... Rc7 {[%clk 0:00:22.4]} 44. Ne2 {[%clk 0:00:48.6]}
44... Rc2 {[%clk 0:00:12.7]} 45. Nf4+ {[%clk 0:00:48.2]} 45... Kh6 {[%clk
0:00:11.9]} 46. Rh5+ {[%clk 0:00:45.7]} 46... Kg7 {[%clk 0:00:11.8]} 47. Rd7+
{[%clk 0:00:45.5]} 47... Kg8 {[%clk 0:00:12.4]} 48. Ng6 {[%clk 0:00:43.4]} 1-0

[Event "Early-Titled-Tuesday-Blitz-March-05-2024"]
[Site "Chess.com"]
[Date "2024.03.05"]
[Round "4"]
[White "MyDream003"]
[Black "Viacheslav92"]
[Result "1-0"]
[WhiteElo "2765"]
[BlackElo "2544"]
[TimeControl "180+1"]
[EndTime "8:41:45 PST"]
[Termination "MyDream003 won by resignation"]

1. Nf3 {[%clk 0:02:59.5]} 1... Nf6 {[%clk 0:02:59.6]} 2. g3 {[%clk 0:02:57.9]}
2... d5 {[%clk 0:02:58.6]} 3. Bg2 {[%clk 0:02:58.3]} 3... Bg4 {[%clk 0:02:59.2]}
4. O-O {[%clk 0:02:56.7]} 4... Nbd7 {[%clk 0:02:57.9]} 5. d4 {[%clk 0:02:56.8]}
5... c6 {[%clk 0:02:58.4]} 6. Ne5 {[%clk 0:02:55.2]} 6... Bh5 {[%clk 0:02:55.9]}
7. c4 {[%clk 0:02:50.7]} 7... e6 {[%clk 0:02:55.5]} 8. Nc3 {[%clk 0:02:50]} 8...
Be7 {[%clk 0:02:55.2]} 9. Qb3 {[%clk 0:02:48.9]} 9... Qb6 {[%clk 0:02:53.8]} 10.
Bf4 {[%clk 0:02:45.6]} 10... Qxb3 {[%clk 0:02:51.1]} 11. axb3 {[%clk 0:02:45.6]}
11... O-O {[%clk 0:02:51.7]} 12. h3 {[%clk 0:02:43.3]} 12... Nxe5 {[%clk
0:02:50.6]} 13. Bxe5 {[%clk 0:02:41.3]} 13... Bg6 {[%clk 0:02:48.5]} 14. c5
{[%clk 0:02:35.8]} 14... Ne4 {[%clk 0:02:20]} 15. Bxe4 {[%clk 0:02:23.6]} 15...
Bxe4 {[%clk 0:02:20.9]} 16. b4 {[%clk 0:02:14.1]} 16... a6 {[%clk 0:02:19.9]}
17. g4 {[%clk 0:02:02.1]} 17... f6 {[%clk 0:02:15]} 18. Bg3 {[%clk 0:01:56.4]}
18... Rae8 {[%clk 0:02:11.3]} 19. f3 {[%clk 0:01:50.5]} 19... Bg6 {[%clk
0:02:08.1]} 20. e4 {[%clk 0:01:42]} 20... f5 {[%clk 0:02:03.9]} 21. gxf5 {[%clk
0:01:36.2]} 21... exf5 {[%clk 0:01:48.9]} 22. exd5 {[%clk 0:01:36.3]} 22... Bf6
{[%clk 0:01:40.2]} 23. Rad1 {[%clk 0:01:25.3]} 23... Bf7 {[%clk 0:01:29.8]} 24.
Bd6 {[%clk 0:01:20]} 24... Be7 {[%clk 0:01:28.7]} 25. Bxe7 {[%clk 0:01:19.6]}
25... Rxe7 {[%clk 0:01:29.6]} 26. d6 {[%clk 0:01:20.2]} 26... Ree8 {[%clk
0:01:25.6]} 27. Rfe1 {[%clk 0:01:14.5]} 27... Bc4 {[%clk 0:01:26.1]} 28. f4
{[%clk 0:01:11]} 28... Kf7 {[%clk 0:01:25.2]} 29. Re5 {[%clk 0:01:10.8]} 29...
Rxe5 {[%clk 0:01:24.4]} 30. dxe5 {[%clk 0:01:09.7]} 30... Ke6 {[%clk 0:01:25]}
31. Kf2 {[%clk 0:01:08.8]} 31... Ra8 {[%clk 0:01:23.1]} 32. h4 {[%clk
0:01:07.6]} 32... Bb3 {[%clk 0:01:19.6]} 33. Ra1 {[%clk 0:01:04.2]} 33... Rf8
{[%clk 0:01:16.2]} 34. Ke3 {[%clk 0:01:00.9]} 34... Kd7 {[%clk 0:01:16.7]} 35.
Rg1 {[%clk 0:00:58.3]} 35... Rf7 {[%clk 0:01:09.6]} 36. Ne2 {[%clk 0:00:57.7]}
36... Be6 {[%clk 0:01:02.7]} 37. Nd4 {[%clk 0:00:57.8]} 37... Bd5 {[%clk
0:00:55.5]} 38. Rg5 {[%clk 0:00:55]} 38... Be6 {[%clk 0:00:54.1]} 39. Rg3 {[%clk
0:00:47.7]} 39... Bd5 {[%clk 0:00:53.1]} 40. Rg1 {[%clk 0:00:45.1]} 40... Be6
{[%clk 0:00:53.5]} 41. Nf3 {[%clk 0:00:45.5]} 41... h6 {[%clk 0:00:45.6]} 42.
Nd4 {[%clk 0:00:42.1]} 42... Bc4 {[%clk 0:00:32]} 43. Rg6 {[%clk 0:00:41.9]}
43... Ke8 {[%clk 0:00:31.3]} 44. e6 {[%clk 0:00:41.6]} 44... Rf6 {[%clk
0:00:31.5]} 45. Rxg7 {[%clk 0:00:37.2]} 1-0